Cogmind - Beta 14 @@@ ROGUE MODE // 2024.11.26 @ 09:51:14 Player: Fangrelle Result: Destroyed by ZZ-OZ7(R) with Subdweller Laser Performance ------------- Evolutions (0) 0 Regions Visited (2) 400 Robots Destroyed (37) 185 Value Destroyed (990) 990 Prototype IDs (0) 0 Alien Tech Used (0) 0 Bonus (0) 0 TOTAL SCORE: 1575 Bonus ------- None Cogmind --------- Core Integrity 0/250 Matter 275/300 Energy 180/250 System Corruption 2% Temperature Cool (6) Movement Treading (480) Ox4 Location -10/Subcaves Parts ------- > --- POWER (1) -------- Ion Engine (fused) > --- PROPULSION (2) --- Light Treads > --- UTILITY (2) ------ Huge Storage Unit Makeshift Light Armor Plating > --- WEAPON (2) ------- Spread Laser (fused) EMP Blaster > --- INVENTORY (25) --- Wheel Compact Wheel Cooling System Cooling System Cooling System Cooling System Disposable Heat Sink Signal Interpreter Makeshift Hacking Suite Tractor Beam Heavy EM Pulse Gun Heavy EM Pulse Gun Riot Gun Spread Laser Barrage Gun Mini Grenade Launcher Mini Grenade Launcher Mini Grenade Launcher Mini Grenade Launcher Mining Laser Flamer Flamer Shrapnel Trap Peak State ------------ > --- POWER ------------ Ion Engine > --- PROPULSION ------- Light Treads Light Treads > --- UTILITY ---------- Huge Storage Unit Makeshift Light Armor Plating > --- WEAPON ----------- Spread Laser Barrage Gun > --- INVENTORY -------- Light Treads Wheel Compact Wheel Cooling System Cooling System Cooling System Cooling System Disposable Heat Sink Signal Interpreter Makeshift Hacking Suite Tractor Beam Heavy EM Pulse Gun Heavy EM Pulse Gun Heavy EM Pulse Gun Spread Laser Spread Laser EMP Blaster Mini Grenade Launcher Mini Grenade Launcher Mini Grenade Launcher Mini Grenade Launcher Mining Laser Flamer Flamer Shrapnel Trap [Rating: 17] Favorites ----------- Power Ion Engine Engine Ion Engine Propulsion Light Treads Treads Light Treads Leg Aluminum Leg Utility Huge Storage Unit Device Cooling System Storage Huge Storage Unit Protection Makeshift Light Armor Plating Weapon Spread Laser Energy Gun Spread Laser Ballistic Gun Barrage Gun Launcher EMP Blaster Special Weapon Mining Laser Build | -11 -10 -10 ------- Run | Yrd Mat Sub Slots Evolved . | . . . Power . | . . . Propulsion . | . . . Utility . | . . . Weapon . | . . . Parts Attached 24 | . 10 14 Power . | . . . Engine . | . . . Core . | . . . Reactor . | . . . Propulsion 5 | . 3 2 Treads 5 | . 3 2 Leg . | . . . Wheel . | . . . Hover . | . . . Flight . | . . . Utility 7 | . 3 4 Device 3 | . 1 2 Storage 2 | . 2 . Processor . | . . . Hackware . | . . . Protection 2 | . . 2 Artifact . | . . . Weapon 12 | . 4 8 Energy Gun 8 | . 4 4 Energy Cannon . | . . . Ballistic Gun 1 | . . 1 Ballistic Cannon . | . . . Launcher 1 | . . 1 Special Weapon 2 | . . 2 Impact Weapon . | . . . Slashing Weapon . | . . . Piercing Weapon . | . . . Special Melee Weapon . | . . . Unidentified Prototypes . | . . . Parts Lost 4 | . 1 3 Power . | . . . Propulsion 2 | . . 2 Utility . | . . . Weapon 2 | . 1 1 Highest Loss Streak 1 | . 1 1 To Critical Strikes . | . . . Average Slot Usage (%) 96 | . 99 94 Engine 14 | . 14 14 Treads 24 | . 28 23 Device 8 | . 13 6 Storage 14 | . 14 14 Protection 4 | . . 7 Energy Gun 23 | . 26 21 Launcher 2 | . . 3 Special Weapon 2 | . . 3 Peak Build Rating 17 | . 13 17 Average Rating 13 | . 10 14 On Entrance 8 | 6 6 13 Naked Turns . | . . . Heaviest Build 96 | 12 93 96 Greatest Support 40 | 20 40 40 Greatest Overweight (x) 4 | . 2 4 Average Overweight (x) 1 | . . 2 Largest Inventory Capacity 25 | . 25 25 Average Capacity 20 | . 11 25 Most Carried 25 | . 22 25 Average Carried 19 | . 9 24 Final Capacity 25 | 8 25 25 Final Carried 23 | 6 22 23 Class Distribution -------------------- 100% | Mutant Dominant Class ---------------- Mutant | -10/Materials Mutant | -10/Subcaves Resources | -11 -10 -10 ----------- Run | Yrd Mat Sub Matter Collected 511 | 200 83 228 Remotely . | . . . Salvage Created 1018 | . 680 338 Parts 58 | . 42 16 Haulers Intercepted . | . . . Recyclers Shooed 1 | . 1 . Parts Field Recycled . | . . . Retrieved Matter . | . . . Parts Self-Destructed 7 | . . 7 Prevented . | . . . Kills | -11 -10 -10 ------- Run | Yrd Mat Sub Combat Hostiles Destroyed 31 | . 18 13 Guns 31 | . 18 13 Classes Destroyed 6 | . 4 2 Recycler 3 | . 3 . Watcher 3 | . 3 . Swarmer 9 | . 6 3 Grunt 15 | . 12 3 Sentry 1 | . . 1 Subdweller 6 | . . 6 Best Kill Streak 3 | . 3 3 Combat Bots Only 3 | . 3 3 Max Kills in Single Turn 2 | . 2 2 Gunslinging 1 | . 1 . Exploded . | . . . Melee . | . . . Uniques/NPCs Destroyed . | . . . Combat | -11 -10 -10 -------- Run | Yrd Mat Sub Hostile Shots Fired 134 | . 67 67 Missed 41 | . 16 25 Damage Taken 1216 | . 489 727 Core 258 | . 83 175 Absorbed by Shields . | . . . Regen/Repaired (Parts) 72 | . 72 . Core Remaining (%) 100 | 100 . . Volleys Fired 83 | . 49 34 Largest 2 | . 2 2 Hottest 130 | . 130 130 Shots Fired 155 | . 97 58 Gun 149 | . 97 52 Cannon . | . . . Launcher 2 | . . 2 Special 4 | . . 4 Kinetic 1 | . . 1 Thermal 152 | . 97 55 Explosive . | . . . Electromagnetic 2 | . . 2 Robot Hit Streak 15 | . 12 15 Robot Miss Streak 10 | . 10 4 Penetration Max . | . . . Secondary Targets 5 | . 3 2 Max Gunslinging Chain 1 | . 1 1 Shots Hit Robots 133 | . 85 48 Core Hits 172 | . 101 71 Critical Kills . | . . . Critical Parts Destroyed . | . . . Critical Strikes . | . . . Melee Attacks . | . . . Impact . | . . . Slashing . | . . . Piercing . | . . . Sneak Attacks . | . . . Combat Hostiles . | . . . Follow-up Attacks . | . . . Damage Inflicted 1836 | . 1014 822 Guns 1766 | . 1014 752 Cannons . | . . . Explosions 70 | . . 70 Melee . | . . . Ramming . | . . . Kinetic 15 | . . 15 Thermal 1751 | . 1014 737 Explosive . | . . . Electromagnetic 70 | . . 70 Impact . | . . . Slashing . | . . . Piercing . | . . . Highest Corruption 2 | . 2 2 Average Corruption 2 | . 2 2 Corruption Purged . | . . . Corruption Blocked . | . . . Effects 61 | . 4 57 Message Errors 15 | . . 15 Matter Fused 11 | . 1 10 Heat Flow Errors 12 | . . 12 Energy Discharges 11 | . 1 10 Parts Fused 2 | . . 2 Data Loss (minor) 6 | . 1 5 Data Loss (major) 2 | . . 2 Alerts 1 | . 1 . Weapon Failures 1 | . . 1 Overload Shots . | . . . Overflow Damage . | . . . Projectiles . | . . . Explosions . | . . . Melee . | . . . Knockbacks . | . . . Impact . | . . . Kinetic . | . . . Secondary . | . . . Self-Inflicted Damage 2 | . . 2 Shots 1 | . . 1 Rammed . | . . . Targets Rammed . | . . . Kicked . | . . . Crushed . | . . . Highest Temperature 423 | . 60 423 Average Temperature 45 | . 10 87 Received Heat Transfer 666 | . 168 498 Effects 2 | . . 2 Shutdowns 1 | . . 1 Interference 1 | . . 1 Siege Activations . | . . . Robots Corrupted . | . . . Combat Hostiles . | . . . Parts Fried . | . . . Impact Corruptions . | . . . Robots Melted . | . . . Combat Hostiles . | . . . Parts Melted 4 | . 1 3 Heat Transferred 2180 | . 1275 905 Parts Sabotaged . | . . . Parts Stolen . | . . . Parts Stripped . | . . . Power Chain Reactions . | . . . Alert | -11 -10 -10 ------- Run | Yrd Mat Sub Peak Influence 338 | . 338 . Initial . | . . . Average 197 | . 197 . Maximum Alert Level 1 | . 1 . Low Security (%) 44 | . 44 . Level 1 55 | . 55 . Level 2 . | . . . Level 3 . | . . . Level 4 . | . . . Level 5 . | . . . High Security . | . . . Max Security . | . . . Squads Dispatched 4 | . 4 . Investigation 3 | . 3 . Extermination . | . . . Reinforcement 1 | . 1 . Assault . | . . . Garrison . | . . . Intercept . | . . . Searches Triggered . | . . . Construction Impeded . | . . . Haulers Reinforced . | . . . Active Scanning Responses . | . . . Cargo Convoy Interrupts . | . . . Stealth | -11 -10 -10 --------- Run | Yrd Mat Sub Distress Signals . | . . . Communications Jammed . | . . . Distress Signals . | . . . Times Spotted 44 | . 29 15 Peak Tracking Total 5 | . 5 3 Tactical Retreats 3 | . 3 . Traps | -11 -10 -10 ------- Run | Yrd Mat Sub Traps Triggered 2 | . 2 . Indirectly . | . . . Trap Hack Attempts . | . . . Triggered . | . . . Disarmed . | . . . Reprogrammed . | . . . Reused . | . . . Traps Extracted . | . . . Installed . | . . . Triggered . | . . . Most Traps Carried 1 | . . 1 Machines | -11 -10 -10 ---------- Run | Yrd Mat Sub Machines Disabled . | . . . Max in Single Turn . | . . . Machines Repaired . | . . . Machines Dismantled . | . . . Machines Sabotaged . | . . . Overloaded Fab Kills . | . . . Hacking | -11 -10 -10 --------- Run | Yrd Mat Sub Machines Accessed 10 | . 10 . Terminals 7 | . 7 . Fabricators . | . . . Repair Stations 1 | . 1 . Recycling Units 2 | . 2 . Scanalyzers . | . . . Garrison Access . | . . . Total Hacks 30 | . 30 . Successful 18 | . 18 . Failed 11 | . 11 . Catastrophic 1 | . 1 . Database Lockouts 1 | . 1 . Manual 24 | . 24 . Terminals 21 | . 21 . Fabricators . | . . . Repair Stations 2 | . 2 . Recycling Units 7 | . 7 . Scanalyzers . | . . . Garrison Access . | . . . Terminal Hacks 2 | . 2 . Robot Analysis 2 | . 2 . Fabricator Hacks . | . . . Repair Station Hacks 2 | . 2 . Scan Component 1 | . 1 . Repair 1 | . 1 . Recycling Unit Hacks 2 | . 2 . Retrieve Components 2 | . 2 . Scanalyzer . | . . . Garrison Access Hacks . | . . . Unauthorized Hacks 12 | . 12 . Terminals 10 | . 10 . Botnet 7 | . 7 . Operators 1 | . 1 . Skim 2 | . 2 . Fabricators . | . . . Repair Stations . | . . . Recycling Units 2 | . 2 . Tunnel 2 | . 2 . Scanalyzers . | . . . Garrison Access . | . . . Data Cores Recovered . | . . . Used . | . . . Hacking Detections 8 | . 8 . Full Trace Events . | . . . Feedback Events . | . . . Feedback Blocked . | . . . Robot Schematics Acquired . | . . . Robots Built . | . . . Authchips . | . . . Time . | . . . Total Robot Build Rating . | . . . Part Schematics Acquired . | . . . Parts Built . | . . . Authchips . | . . . Time . | . . . Total Part Build Rating . | . . . Parts Repaired 1 | . 1 . Time 32 | . 32 . Parts Recycled . | . . . Recycled Matter . | . . . Retrieved Matter . | . . . Retrieved Components 9 | . 9 . Parts Scanalyzed . | . . . Part Schematics Acquired . | . . . Parts Damaged . | . . . Bothacking | -11 -10 -10 ------------ Run | Yrd Mat Sub Used RIF Installer . | . . . Robots Hacked . | . . . Non-combat . | . . . Combat . | . . . Robot Hacks Applied . | . . . Relay Couplers Released . | . . . Fabnet Peak Effective % . | . . . Robots Rewired . | . . . Allies Hacked . | . . . Hacks Repelled . | . . . Allies | -11 -10 -10 -------- Run | Yrd Mat Sub Total Allies . | . . . Largest Group . | . . . Highest-Rated Group . | . . . Highest-Rated Ally . | . . . Total Orders . | . . . Ally Attacks . | . . . Total Damage . | . . . Kills . | . . . Allies Corrupted . | . . . Allies Melted . | . . . Intel | -11 -10 -10 ------- Run | Yrd Mat Sub Robot Analysis Total 2 | . 2 . Derelict Logs Recovered 1 | . . 1 Drone Launches . | . . . Drone Recoveries . | . . . Exploration | -11 -10 -10 ------------- Run | Yrd Mat Sub Turns Passed 7025 | . 2269 4756 Spaces Moved 2309 | 1 1031 1277 Core . | . . . Treads 2308 | . 1031 1277 Legs 1 | 1 . . Wheels . | . . . Hover . | . . . Flight . | . . . Fastest Speed 120 | 120 160 320 Average Speed 280 | 120 180 361 Slowest Speed 480 | 120 320 480 Overloaded Moves . | . . . Propulsion Burnouts . | . . . Robots Hopped . | . . . Cave-ins Triggered . | . . . Exploration Rate (%) 51 | 2 97 54 Regions Visited 2 Branch Regions 1 Pre-discovered Areas 3 | . 2 1 Known Exits Taken . | . . . Unknown Exits Taken 2 | 1 1 . Scrap Searched 3 | . . 3 Spaces Dug . | . . . Terrain Destroyed . | . . . Melee . | . . . Projectile . | . . . AOE . | . . . Terrain Rammed . | . . . Walls Destroyed . | . . . Machines Disabled . | . . . Actions | -11 -10 -10 --------- Run | Yrd Mat Sub Total 2699 | . 1355 1344 Wait 219 | . 215 4 Move 2307 | . 1030 1277 Hop . | . . . Pick Up 41 | . 32 9 Fast Attach 3 | . 3 . Attach 7 | . 4 3 Detach . | . . . Swap 14 | . 3 11 Drop 25 | . 19 6 Fire 83 | . 49 34 Melee . | . . . Ram . | . . . Kick . | . . . Crush . | . . . Escape Stasis . | . . . Rewire . | . . . Trap . | . . . Miscellaneous . | . . . Route ------- -11/Scrapyard -10/Materials (discovered 5 exits: [*Mat x3] / [*Min] / [*Sub]) -10/Subcaves (discovered 2 exits: [*Mat x2]) History --------- Turn | Location | Event 1 | -11/Scrapyard | Discovered new exit (range 0) 1 | -11/Scrapyard | Entered Materials 314 | -10/Materials | Build established: Mutant 342 | -10/Materials | Discovered new exit (range 3) 388 | -10/Materials | Discovered new exit (range 10) 422 | -10/Materials | Central database locked down 1014 | -10/Materials | Discovered new exit (range 8) 1203 | -10/Materials | Discovered new exit (range 13) 1309 | -10/Materials | Repaired Spread Laser? 1747 | -10/Materials | Discovered new exit (range 6) 2270 | -10/Materials | Entered Subcaves 2316 | -10/Subcaves | Shifting Twisted Machinery released Mak. Hacking Suite 2326 | -10/Subcaves | Shifting Twisted Machinery released Flamer 2596 | -10/Subcaves | A swath of the cavern ceiling suddenly collapsed 2744 | -10/Subcaves | Discovered new exit (range 5) 3412 | -10/Subcaves | Shifting Twisted Machinery released Battle Rifle 3491 | -10/Subcaves | Discovered new exit (range 8) 3493 | -10/Subcaves | Shifting Twisted Machinery released Shrapnel Trap 4040 | -10/Subcaves | Shifting Twisted Machinery released Riot Gun 4091 | -10/Subcaves | Shifting Twisted Machinery released Mak. Light Armor Plating 4457 | -10/Subcaves | Core integrity fell below 50% 5348 | -10/Subcaves | Learned location of Storage (-7) 5586 | -10/Subcaves | Core integrity fell below 20% 7026 | -10/Subcaves | Destroyed by ZZ-OZ7(R) with Subdweller Laser Last Messages --------------- 05678_ Ion Engine fries itself beyond repair. 05729_ Subatomizers dissect the Sub. Optics. 05755_ Subatomizers dissect the Disposable Heat Sink. 05761_ System corrupted: Heat flow error (+274). 05799_ System corrupted: Heat flow error (+287). 05948_ System corrupted: Matter fused (-9). 06027_ System corrupted: Matter fused (-8). 06147_ System corrupted: Energy discharge (-92). 06225_ W3 06362_ System corrupted: Heat flow error (+253). 06369_ 5D-S41(u) tweaks Twisted Machinery. 06379_ System corrupted: Heat flow error (+191). 06380_ 5D-S41(u) tweaks Twisted Machinery. 06586_ System corrupted: Component data lost. 06798_ Acquired 27 matter. 06820_ System corrupted: Matter fused (-9). 06971_ System corrupted: Energy discharge (-95). 07020_ System corrupted: Matter fused (-8). Map ----- +----------------------------------------------------+ | ?????????????????????????????????????????????????? | | ?????????????????????????????????????????????????? | | ?????????????????????????????????????????????????? | | ?????????????????????????????????????????????????? | | ?????????????????????????????????????????????????? | | ?????????????????????????????????????????????????? | | ?????????????????????????????????????????????????? | | ?????????????????????????????????????????????????? | | ?????????????????????????????????????????????????? | | ?????????????????????????????????????????????????? | | ?????????????????????????????????????????????????? | | ?????????????????????????????????????????????????? | | ?????????????????????????????????????????????????? | | ?????????????????????????????????????????????????? | | ?????????????????????????????????????????????????? | | ?????????????????????????????????????????????????? | | ?????????????????????????????????????????????????? | | ?????????????????????????????????????????????????? | | ?????????????????????????????????????????????????? | | ?????????????????????????????????????????????????? | | ????????????????????????????????????????????????## | | ??????????? # # ####??????????????????????????## | | ???????????? ????###??????????????????# | | ???????????????? #### ##?????????????????# | | ???????????????????# ###??????????????## | | ???????????????????# @ ##????####???### | | ???????????????????# ##??## ##?## | | ???????????????????# R## #### ### | | ???????????????????###R ?#### ## ### | | ????????????????????# ?????## ## ## | | ??????????????????? ???????#### | | ?????????????????? ???????????## ##### | | ????????????????? # ????????????# ##???## | | ????????????????#?##??????????""""" ###?????# | | ??????????????????????????????""""" ######???? | | ??????????????????????????????""""" "### #??? | | ??????????????????????????????"""""" ### ?? | | ???????????????????????????????"""""""#?# ?# | | ???????????????????????????????""" " "#?# ### | | ????????????????????????????????""""""#?# #? | | ????????????????????????????????? " "#??# ? | | ???????????????????????????????????""???# ? | | ????????????????????????????????????????#" # | | ?????????????????????????????????????????????# | | ?????????????????????????????????????????????# | | ?????????????????????????????????????????????## | | ??????????????????????????????????????????????## | | ??????????????????????????????????????????????## | | ??????????????????????????????????????????????# | | ??????????????????????????????????????????????# # | +----------------------------------------------------+ Best States ------------- Heat Dissipation 47 Coolant Potential 50 Energy Generation 10 Energy Capacity 250 Matter Stores 300 Matter Capacity 300 Sight Range 16 Terrain Scan Density 10 Armor Coverage 100 Evasion (%) 40 Recoil Reduction 2 Item Schematics ----------------- None Robot Schematics ------------------ None Fabricated ------------ Nothing Alien Tech Used ----------------- None Achievements -------------- None Challenges ------------ None Game ------ Seed UltimateHugeLattice Manual? 0 Play Time 00:20:13 Cumulative 140.5 hours Start 2024.11.26 @ 07:40:49 End 2024.11.26 @ 09:51:14 Sessions 3 Manual Loads 0 Difficulty Rogue Special Mode None Game No. 271 Rogue 271 Adventurer 0 Explorer 0 Win Type - Total 0 Types 0/0/0/0/0/0/0/0/0 Lore% 43 Gallery% 41 Achievement% 36 Wizard Run 0 Options --------- Layout 0 ASCII 0 Keyboard 0 Movement Mouse Keybinds 0 Fullscreen 1 Font 24/Smallcaps Map View 91x25 Zoom Use 94% Tactical HUD 1 Map Filters NONE Filters NONE Steam 1 RUN: 1bdb46a7-eb32-4387-8d69-0cd615df9301